Workbook

Sheet паспорт
A1: ПАТ "УКРТРАНСГАЗ" | G1: ПАСПОРТ ФІЗИКО-ХІМІЧНИХ ПОКАЗНИКІВ ПРИРОДНОГО ГАЗУ №96
A2: Філія "УМГ "Київтрансгаз" | G2: переданогоДиканським ЛВУМГ та прийнятого ПАТ "Полтавагаз"
A3: Диканський п/м Диканське ЛВУМГ | G3: Маршрут №96
A4: Вимірювальна хіміко-аналітична лабораторія
A5: Свідоцтво № 186-13 чинне до 05.12.2018 р. | K5: по газопроводу "ШЕБЕЛІНКА - ПОЛТАВА - КИЇВ" | V5: за період з | X5: 2017-05-01 | Z5: по | AA5: 31.05.2017р.
A7: Число місяця | B7: Компонентний склад, % мол. | N7: Фізико-хімічні показники газу обчислені на основі компонентного складу, 101,325 кПа | X7: Температура точки роси за вологою (Р = 3.92 МПа), °С | Y7: Температура точки роси за вуглеводнями, °С | Z7: Вміст сірководню, г/м3 | AA7: Вміст меркаптанової сірки, г/м3 | AB7: Вміст механічних домішок, г/м3
N8: Густина абсолютна, кг/м3,при 20 ºС, | O8: Температура вимірювання/згоряння при 20/25°С
B9: метан, С1 | C9: етан, С2 | D9: пропан, С3 | E9: ізо-бутан, і-С4 | F9: н-бутан, н-С4 | G9: нео-пентан, нео-С5 | H9: ізо-пентан, і-С5 | I9: н-пентан, н-С5 | J9: гексани та вищі, С6+ | K9: кисень, О2 | L9: азот, N2 | M9: діоксид вуглецю, CО2 | O9: Теплота згоряння нижча | R9: Теплота згоряння вища | U9: Число Воббе вище
O10: ккал/м3 | P10: МДж/м3 | Q10: кВт⋅год/м3 | R10: ккал/м3 | S10: МДж/м3 | T10: кВт⋅год/м3 | U10: ккал/м3 | V10: МДж/м3 | W10: кВт⋅год/м3
A11: 1 | O11: 8315.882493 | P11: 34.8186 | Q11: =P11/3.6 -> 9.671833333 | R11: 9214 | S11: 38.5742 | T11: =S11/3.6 -> 10.71505556 | AC11: =SUM(B11:M11)+$K$42+$N$42 -> 0
A12: 2 | O12: 8315.882493 | P12: 34.8186 | Q12: =P12/3.6 -> 9.671833333 | R12: 9214 | S12: 38.5742 | T12: =S12/3.6 -> 10.71505556 | AC12: 0
A13: 3 | O13: 8315.882493 | P13: 34.8186 | Q13: 9.671833333 | R13: 9214 | S13: 38.5742 | T13: 10.71505556 | AC13: 0 | AD13: =IF(AC13=100,"ОК"," ") -> 
A14: 4 | O14: 8315.882493 | P14: 34.8186 | Q14: 9.671833333 | R14: 9214 | S14: 38.5742 | T14: 10.71505556 | AC14: 0 | AD14: =IF(AC14=100,"ОК"," ") -> 
A15: 5 | O15: 8315.882493 | P15: 34.8186 | Q15: 9.671833333 | R15: 9214 | S15: 38.5742 | T15: 10.71505556 | AC15: 0
A16: 6 | O16: 8315.882493 | P16: 34.8186 | Q16: 9.671833333 | R16: 9214 | S16: 38.5742 | T16: 10.71505556 | AC16: 0
A17: 7 | O17: 8315.882493 | P17: 34.8186 | Q17: 9.671833333 | R17: 9214 | S17: 38.5742 | T17: 10.71505556 | AC17: 0
A18: 8 | O18: 8315.882493 | P18: 34.8186 | Q18: 9.671833333 | R18: 9214 | S18: 38.5742 | T18: 10.71505556 | AC18: 0
A19: 9 | O19: 8315.882493 | P19: 34.8186 | Q19: 9.671833333 | R19: 9214 | S19: 38.5742 | T19: 10.71505556 | AC19: 0
A20: 10 | O20: 8315.882493 | P20: 34.8186 | Q20: 9.671833333 | R20: 9214 | S20: 38.5742 | T20: 10.71505556 | AC20: 0
A21: 11 | O21: 8315.882493 | P21: 34.8186 | Q21: 9.671833333 | R21: 9214 | S21: 38.5742 | T21: 10.71505556 | AC21: 0
A22: 12 | B22: 92.2055 | C22: 4.1211 | D22: 1.0224 | E22: 0.1429 | F22: 0.1999 | G22: 0.0048 | H22: 0.0565 | I22: 0.0418 | J22: 0.0685 | K22: 0.008 | L22: 1.2784 | M22: 0.8503 | N22: 0.7312 | O22: 8308.995054 | P22: 34.7881 | Q22: 9.663361111 | R22: 9205.240409 | S22: 38.5405 | T22: 10.70569444 | U22: 11813.87628 | V22: 49.4647 | W22: 13.73953697 | X22: -9.7 | Y22: -12.5 | AC22: 100.0001
A23: 13 | O23: 8308.995054 | P23: 34.7881 | Q23: 9.663361111 | R23: 9205.240409 | S23: 38.5405 | T23: 10.70569444 | AC23: 0
A24: 14 | O24: 8308.995054 | P24: 34.7881 | Q24: 9.663361111 | R24: 9205.240409 | S24: 38.5405 | T24: 10.70569444 | AC24: 0
A25: 15 | O25: 8308.995054 | P25: 34.7881 | Q25: 9.663361111 | R25: 9205.240409 | S25: 38.5405 | T25: 10.70569444 | Z25: <0,006 | AA25: <0,02 | AB25: від. | AC25: 0
A26: 16 | O26: 8308.995054 | P26: 34.7881 | Q26: 9.663361111 | R26: 9205.240409 | S26: 38.5405 | T26: 10.70569444 | AC26: 0
A27: 17 | O27: 8308.995054 | P27: 34.7881 | Q27: 9.663361111 | R27: 9205.240409 | S27: 38.5405 | T27: 10.70569444 | AC27: 0
A28: 18 | B28: 92.2843 | C28: 4.1353 | D28: 1.0314 | E28: 0.1415 | F28: 0.1965 | G28: 0.0049 | H28: 0.055 | I28: 0.041 | J28: 0.0644 | K28: 0.0021 | L28: 1.2241 | M28: 0.8194 | N28: 0.7305 | O28: 8315.611085 | P28: 34.8158 | Q28: 9.671055556 | R28: 9212.620747 | S28: 38.5714 | T28: 10.71427778 | U28: 11829.28111 | V28: 49.5292 | W28: 13.75745277 | X28: -5 | Y28: -9.8 | AC28: 99.9999
A29: 19 | O29: 8315.611085 | P29: 34.8158 | Q29: 9.671055556 | R29: 9212.620747 | S29: 38.5714 | T29: 10.71427778 | AC29: 0
A30: 20 | O30: 8315.611085 | P30: 34.8158 | Q30: 9.671055556 | R30: 9212.620747 | S30: 38.5714 | T30: 10.71427778 | AC30: 0 | AD30: =IF(AC30=100,"ОК"," ") -> 
A31: 21 | O31: 8315.611085 | P31: 34.8158 | Q31: 9.671055556 | R31: 9212.620747 | S31: 38.5714 | T31: 10.71427778 | AC31: 0
A32: 22 | O32: 8315.611085 | P32: 34.8158 | Q32: 9.671055556 | R32: 9212.620747 | S32: 38.5714 | T32: 10.71427778 | AC32: 0
A33: 23 | O33: 8315.611085 | P33: 34.8158 | Q33: 9.671055556 | R33: 9212.620747 | S33: 38.5714 | T33: 10.71427778 | AC33: 0 | AD33: =IF(AC33=100,"ОК"," ") -> 
A34: 24 | B34: 92.1028 | C34: 4.2332 | D34: 1.0916 | E34: 0.1506 | F34: 0.211 | G34: 0.0052 | H34: 0.0589 | I34: 0.0368 | J34: 0.0693 | K34: 0.0096 | L34: 1.2742 | M34: 0.7569 | N34: 0.7319 | O34: 8335.435295 | P34: 34.8988 | Q34: 9.694111111 | R34: 9233.878032 | S34: 38.6604 | T34: 10.739 | U34: 11845.1636 | V34: 49.5957 | W34: 13.77592411 | X34: -4.6 | Y34: -4.5 | AC34: 100.0001
A35: 25 | O35: 8335.435295 | P35: 34.8988 | Q35: 9.694111111 | R35: 9233.878032 | S35: 38.6604 | T35: 10.739 | AC35: 0
A36: 26 | O36: 8335.435295 | P36: 34.8988 | Q36: 9.694111111 | R36: 9233.878032 | S36: 38.6604 | T36: 10.739 | AC36: 0
A37: 27 | O37: 8335.435295 | P37: 34.8988 | Q37: 9.694111111 | R37: 9233.878032 | S37: 38.6604 | T37: 10.739 | AC37: 0
A38: 28 | O38: 8335.435295 | P38: 34.8988 | Q38: 9.694111111 | R38: 9233.878032 | S38: 38.6604 | T38: 10.739
A39: 29 | B39: 92.2741 | C39: 4.1267 | D39: 1.0494 | E39: 0.1441 | F39: 0.2027 | G39: 0.0049 | H39: 0.0562 | I39: 0.0413 | J39: 0.0686 | K39: 0.0049 | L39: 1.2209 | M39: 0.8061 | N39: 0.7308 | O39: 8321.701656 | P39: 34.8413 | Q39: 9.678138889 | R39: 9219.18901 | S39: 38.5989 | T39: 10.72191667 | U39: 11835.10867 | V39: 49.5536 | W39: 13.76423023 | X39: -3.7 | Y39: -2.1
A40: 30 | O40: 8321.701656 | P40: 34.8413 | Q40: 9.678138889 | R40: 9219.18901 | S40: 38.5989 | T40: 10.72191667
A41: 31 | O41: 8321.701656 | P41: 34.8413 | Q41: 9.678138889 | R41: 9219.18901 | S41: 38.5989 | T41: 10.72191667 | AC41: 0
A42: Рівень одоризації відповідає чинним нормативним документам | O42: =SUMPRODUCT(O11:O41,' розрахунок'!E7:E37)/' розрахунок'!E38 -> 8315.849371 | P42: =SUMPRODUCT(P11:P41,' розрахунок'!E7:E37)/' розрахунок'!E38 -> 34.81726764 | Q42: =SUMPRODUCT(Q11:Q41,' розрахунок'!E7:E37)/' розрахунок'!E38 -> 9.671463233 | R42: =SUMPRODUCT(R11:R41,' розрахунок'!E7:E37)/' розрахунок'!E38 -> 9213.096387 | S42: =SUMPRODUCT(S11:S41,' розрахунок'!E7:E37)/' розрахунок'!E38 -> 38.57255107 | T42: =SUMPRODUCT(T11:T41,' розрахунок'!E7:E37)/' розрахунок'!E38 -> 10.71459752
H43: Середньозважене значення теплоти згоряння:
B46: Заступник начальника Диканського ЛВУМГ 31.05.2017р. | L46: Герасименко І.М. | Z46: =TODAY() -> 2017-06-01
B48: Завідувач лабораторії Диканського ЛВУМГ | L48: Горшковоз О.В. | Z48: =TODAY() -> 2017-06-01
B50: Начальник служби ГВМ та М Диканського ЛВУМГ | L50: Левадний С.А. | Z50: =TODAY() -> 2017-06-01

Sheet розрахунок
A2: Додаток до Паспорту фізико-хімічних показників природного газу по маршруту №96
A4: Число місяця | B4: Теплота згоряння вища, МДж/м3 | C4: Полтавська область | E4: Загальний обсяг газу, м3
C5: Обсяг газу переданого за добу, м3
C6: ГРС Чутово | D6: ГРС Скороходове (Артемівка)
A7: 1 | B7: =паспорт!S11 -> 38.5742 | C7: 0 | D7: 2398.66 | E7: =SUM(C7:D7) -> 2398.66
A8: 2 | B8: =паспорт!S12 -> 38.5742 | C8: 0 | D8: 2394.69 | E8: 2394.69
A9: 3 | B9: =паспорт!S13 -> 38.5742 | C9: 0 | D9: 2247.75 | E9: 2247.75
A10: 4 | B10: =паспорт!S14 -> 38.5742 | C10: 0 | D10: 2403.66 | E10: 2403.66
A11: 5 | B11: =паспорт!S15 -> 38.5742 | C11: 0 | D11: 2480.6 | E11: 2480.6
A12: 6 | B12: =паспорт!S16 -> 38.5742 | C12: 0 | D12: 2497.61 | E12: 2497.61
A13: 7 | B13: =паспорт!S17 -> 38.5742 | C13: 0 | D13: 2305.06 | E13: 2305.06
A14: 8 | B14: =паспорт!S18 -> 38.5742 | C14: 0 | D14: 2432.2 | E14: 2432.2
A15: 9 | B15: =паспорт!S19 -> 38.5742 | C15: 0 | D15: 2924.82 | E15: 2924.82
A16: 10 | B16: =паспорт!S20 -> 38.5742 | C16: 0 | D16: 4415.25 | E16: 4415.25
A17: 11 | B17: =паспорт!S21 -> 38.5742 | C17: 0 | D17: 5224.02 | E17: 5224.02
A18: 12 | B18: =паспорт!S22 -> 38.5405 | C18: 0 | D18: 7951.1 | E18: 7951.1
A19: 13 | B19: =паспорт!S23 -> 38.5405 | C19: 0 | D19: 8821.22 | E19: 8821.22
A20: 14 | B20: =паспорт!S24 -> 38.5405 | C20: 0 | D20: 6811.88 | E20: 6811.88
A21: 15 | B21: =паспорт!S25 -> 38.5405 | C21: 0 | D21: 4604.13 | E21: 4604.13
A22: 16 | B22: =паспорт!S26 -> 38.5405 | C22: 0 | D22: 2979.83 | E22: 2979.83
A23: 17 | B23: =паспорт!S27 -> 38.5405 | C23: 0 | D23: 3808.22 | E23: 3808.22
A24: 18 | B24: =паспорт!S28 -> 38.5714 | C24: 0 | D24: 5825.49 | E24: 5825.49
A25: 19 | B25: =паспорт!S29 -> 38.5714 | C25: 0 | D25: 6281.15 | E25: 6281.15
A26: 20 | B26: =паспорт!S30 -> 38.5714 | C26: 0 | D26: 5970.53 | E26: 5970.53
A27: 21 | B27: =паспорт!S31 -> 38.5714 | C27: 0 | D27: 4996.23 | E27: 4996.23
A28: 22 | B28: =паспорт!S32 -> 38.5714 | C28: 0 | D28: 3602.94 | E28: 3602.94
A29: 23 | B29: =паспорт!S33 -> 38.5714 | C29: 0 | D29: 2600.12 | E29: 2600.12
A30: 24 | B30: =паспорт!S34 -> 38.6604 | C30: 0 | D30: 2266.85 | E30: 2266.85
A31: 25 | B31: =паспорт!S35 -> 38.6604 | C31: 0 | D31: 2116.74 | E31: 2116.74
A32: 26 | B32: =паспорт!S36 -> 38.6604 | C32: 0 | D32: 2060.54 | E32: 2060.54
A33: 27 | B33: =паспорт!S37 -> 38.6604 | C33: 0 | D33: 2187.88 | E33: 2187.88
A34: 28 | B34: =паспорт!S38 -> 38.6604 | C34: 0 | D34: 2300.53 | E34: =SUM(C34:D34) -> 2300.53
A35: 29 | B35: =паспорт!S39 -> 38.5989 | C35: 0 | D35: 1856.04 | E35: 1856.04
A36: 30 | B36: =паспорт!S40 -> 38.5989 | C36: 0 | D36: 1734.85 | E36: 1734.85
A37: 31 | B37: =паспорт!S41 -> 38.5989 | C37: 0 | D37: 1798.58 | E37: 1798.58
A38: Загальний обсяг газу, м3 | C38: =SUM(C7:C37) -> 0 | D38: =SUM(D7:D37) -> 112299.17 | E38: =SUM(E7:E37) -> 112299.17
A39: Енергія, МДж | C39: =SUMPRODUCT(B7:B37,C7:C37) -> 0 | D39: =SUMPRODUCT(B7:B37,D7:D37) -> 4331665.47 | E39: =SUMPRODUCT(B7:B37,E7:E37) -> 4331665.47
A40: Теплота згоряння (середньозважене значення за місяць), МДж/м³ | C40: =C39/C38 ->  | D40: 38.57255107 | E40: 38.57255107
A41: Теплота згоряння (середньозважене значення за місяць), ккал/м³ | C41: =C40*238.8459 ->  | D41: 9212.895676 | E41: 9212.895676
A42: Теплота згоряння (середньозважене значення за місяць), кВт*год./м³ | C42: =C40/3.6 ->  | D42: 10.71459752 | E42: 10.71459752

Sheet додаток
A2: Додаток до Паспорту фізико-хімічних показників природного газу № | E2: 96
A4: Область | B4: ГРС, прямий споживач | C4: Cередньозважене значення вищої теплоти згоряння
C5: МДж/м³ | D5: ккал/м³ | E5: кВт*год./м³
A6: Полтавська область | B6: ГРС Чутово | C6: зупинка
B7: ГРС Скороходове (Артемівка) | C7: =' розрахунок'!D40 -> 38.57255107 | D7: =' розрахунок'!D41 -> 9212.895676 | E7: =' розрахунок'!E42 -> 10.71459752
A8: Середньозважене значення вищої теплоти згоряння по маршруту №96 | C8: =' розрахунок'!E40 -> 38.57255107 | D8: =' розрахунок'!E41 -> 9212.895676 | E8: =' розрахунок'!E42 -> 10.71459752
A11: Заступник начальника Диканського ЛВУМГ | C11: Герасименко І.М. | E11: =TODAY() -> 2017-06-01
A13: Завідувач вимірювальної хіміко-аналітичної лабораторії лабораторії | C13: Горшковоз О.В. | E13: =TODAY() -> 2017-06-01
A15: Начальник службиГВ та М | C15: Левадний С.А. | E15: =TODAY() -> 2017-06-01

Sheet variablesList (hidden)
A1: 3 | B1: x:\gaysin | C1: 10, 11, 24, 25, 127, 128, 132, 180, 207, 215 | D1: x:\
B2: x:\Illinci
B3: x:\Talne
